{"text_format":"1","workbook":"xlsx","n_sheets":13,"sheets":["1. Forside","2. Samlet prisloft","3. Driftsomkostninger","4. Historiske investeringer","5. Gennemførte investeringer","6. Korrektion investeringer","7. Planlagte investeringer","8. 1-1 omkostninger","9. Miljø- og servicemål","10. Klimatilpasning","11. Nettofinansielle poster","12. Over- eller underdækning","13. Kontrol med indtægtsrammen"],"not_rendered":{"charts":0,"images":0,"macros":1,"external_links":0,"defined_names":0,"comments":0,"pivot_tables":0},"unopened":[],"bounds":{"document_bytes":16777216,"sheet_cells":100000,"rows_first":2000,"rows_last":500,"rows_between":2000,"halvings":0,"cell_chars":16384,"cell_head_chars":4096},"cells_cut":0,"cells_raw":0,"read":"whole","date_system":"1900"}

{"sheet":"1. Forside","index":0,"n_rows":27,"n_cols":4,"rows_kept":27,"cut":false,"hidden":false,"merged":[[21,3,21,5],[20,3,20,5],[19,3,19,5],[18,3,18,5],[7,3,7,5],[12,3,12,5],[15,3,15,5],[16,3,16,5],[17,3,17,5],[26,3,26,5],[25,3,25,5],[24,3,24,5],[23,3,23,5],[22,3,22,5]]}
["Greve Spildevand A/S"]
[]
[]
[]
[]
[]
[]
[null,null,null,"Bilag A"]
[]
[]
[]
[]
[null,null,null,"Indholdsfortegnelse"]
[]
[]
[null,null,"Fane nr. 2","Samlet prisloft "]
[null,null,"Fane nr. 3","Driftsomkostninger"]
[null,null,"Fane nr. 4","Historiske investeringer "]
[null,null,"Fane nr. 5","Gennemførte investeringer"]
[null,null,"Fane nr. 6","Korrektion investeringer"]
[null,null,"Fane nr. 7","Planlagte investeringer"]
[null,null,"Fane nr. 8","1:1 omkostninger"]
[null,null,"Fane nr. 9","Miljø- og servicemål"]
[null,null,"Fane nr. 10","Klimatilpasning"]
[null,null,"Fane nr. 11","Nettofinansielle poster"]
[null,null,"Fane nr. 12","Over- eller underdækning"]
[null,null,"Fane nr. 13","Kontrol med indtægtsrammen og oversigt over ekstraordinære effektiviseringsgevinster"]

{"sheet":"2. Samlet prisloft","index":1,"n_rows":38,"n_cols":6,"rows_kept":38,"cut":false,"hidden":false,"merged":[[3,1,3,5]]}
[{"$f":"'1. Forside'!A1","v":"Greve Spildevand A/S"}]
[]
[]
[null,"Fane 2. Samlet prisloft for 2015"]
[]
[null,"Driftsomkostninger"]
[null,"Driftsomkostninger i prisloftet for 2014",{"$f":"'3. Driftsomkostninger'!C24","v":29390722.274999999},"kr."]
[null,"Bortfald af væsentlige omkostninger",{"$f":"-'3. Driftsomkostninger'!C20","v":0},"kr."]
[null,"Korrektion for prisudviklingen 2014-2015",{"$f":"'3. Driftsomkostninger'!C26","v":23512.577819999999},"kr."]
[null,"Forhøjelse til effektivt niveau iht. benchmarkingen",{"$f":"'3. Driftsomkostninger'!C32","v":0},"kr."]
[null,"Korrektion for generelt effektiviseringskrav",{"$f":"-'3. Driftsomkostninger'!C38","v":-129319.17801},"kr."]
[null,"Korrektion for individuelt effektiviseringskrav",{"$f":"-'3. Driftsomkostninger'!C47","v":-1469536.11375},"kr."]
[null,"Driftsomkostninger i alt",{"$f":"SUM(C7:C12)","v":27815379.561059996},"kr.",{"$f":"C13","v":27815379.561059996}," kr."]
[null,"Investeringer"]
[null,"Tillæg for historiske investeringer",{"$f":"'4. Historiske investeringer'!C9","v":34610913.607459441},"kr."]
[null,"Tillæg for gennemførte investeringer i 2011-2013",{"$f":"'5. Gennemførte investeringer'!F30","v":3676701.2333333334},"kr."]
[null,"Korrektion af tillæg for planlagte investeringer vedrørende 2013  ",{"$f":"'6. Korrektion investeringer'!C10","v":-339424.56666666665},"kr."]
[null,"Tillæg for planlagte investeringer i 2014 og 2015",{"$f":"'7. Planlagte investeringer'!F31","v":1782166.6666666665},"kr."]
[null,"Investeringstillæg i alt",{"$f":"SUM(C15:C18)","v":39730356.940792769},"kr.",{"$f":"C19","v":39730356.940792769}," kr."]
[null,"Øvrige omkostninger mv."]
[null,"Tillæg for 1:1 omkostninger i 2015",{"$f":"'8. 1-1 omkostninger'!C13","v":3513296},"kr."]
[null,"Tillæg vedr. revisorerklæringer og DANVA/FVD-kontingent",{"$f":"'8. 1-1 omkostninger'!C21","v":157000},"kr."]
[null,"Korrektion ift. faktiske 1:1 omkostninger i 2013",{"$f":"'8. 1-1 omkostninger'!C27","v":26508},"kr."]
[null,"Tillæg for driftsomkostninger til miljø- og servicemål i 2015",{"$f":"'9. Miljø- og servicemål'!C8","v":6000000},"kr."]
[null,"Korrektion ift. faktiske driftsomkostninger til miljø- og servicemål i 2013",{"$f":"'9. Miljø- og servicemål'!C15","v":3645311},"kr."]
[null,"Tillæg for driftsomkostninger til medfinansiering af klimatilpasningsprojekter i 2015",{"$f":"'10. Klimatilpasning'!C9","v":0},"kr."]
[null,"Korrektion ift. faktiske omkostninger til medfinansiering af klimatilpasningsprojekter i 2013",{"$f":"'10. Klimatilpasning'!C16","v":0},"kr."]
[null,"Tillæg/fradrag for nettofinansielle poster i 2015",{"$f":"'11. Nettofinansielle poster'!C9","v":-170000},"kr."]
[null,"Korrektion ift. faktiske nettofinansielle poster i 2013",{"$f":"'11. Nettofinansielle poster'!C16","v":359981},"kr."]
[null,"Øvrige omkostninger mv. i alt",{"$f":"SUM(C21:C29)","v":13532096},"kr.",{"$f":"C30","v":13532096}," kr."]
[null,"Historisk over- eller underdækning"]
[null,"Tillæg/fradrag for over- eller underdækning til og med 2010",{"$f":"'12. Over- eller underdækning'!C11","v":0},"kr.",{"$f":"C32","v":0}," kr."]
[null,"Korrektion i forhold til tidligere indtægtsramme "]
[null,"Korrektion for overholdelse af indtægtsramme i prisloft 2013",{"$f":"'13. Kontrol med indtægtsrammen'!E27","v":16070486.343627229},"kr.",{"$f":"C34","v":16070486.343627229}," kr."]
[null,"Samlet prisloft"]
[null,"Indtægtsramme i 2015 ",null,null,{"$f":"SUM(E13:E34)","v":97148318.845479995}," kr."]
[null,"Debiteret vandmængde i 2013",null,null,2192094," m3"]
[null,"Prisloft 2015",null,null,{"$f":"E36/E37","v":44.317588043888627}," kr./m3"]

{"sheet":"3. Driftsomkostninger","index":2,"n_rows":47,"n_cols":4,"rows_kept":47,"cut":false,"hidden":false,"merged":[[3,1,3,3],[6,2,8,2],[6,3,8,3]]}
[{"$f":"'1. Forside'!A1","v":"Greve Spildevand A/S"}]
[]
[]
[null,"Fane 3. Driftsomkostninger "]
[]
[null,"Driftsomkostningerne i prisloftet for 2014"]
[null,"Korrigerede driftsomkostninger i prisloftet for 2013 (DOiPL 2013)",48929472,"kr."]
[null,"       inkl. tillæg iht. § 8, stk. 2, pkt. 1 på 536.120  kr."]
[null,"       samt midlertidigt tillæg iht. § 8, stk. 5 på 17.908.867 kr."]
[null,"Prisfremskrivning 1,5 pct.",{"$f":"0.015*SUM(C7:C7)","v":733942.08},"kr."]
[null,"Generelt effektiviseringskrav (0 pct.)",0,"kr."]
[null,"Individuelt effektiviseringskrav ",-1551030,"kr."]
[null,"Bortfald af midlertidigt tillæg  iht. § 8, stk. 5 (inkl. prisfremskrivning)",{"$f":"-1.015*17908867","v":-18177500.004999999},"kr."]
[null,"Bortfald af tillæg  iht. § 8, stk. 2, pkt. 1 (inkl. prisfremskrivning)",{"$f":"-1.015*536120","v":-544161.79999999993},"kr."]
[null,"Driftsomkostningerne i prisloftet for 2014 (DOiPL 2014)\n(korrigeret for bortfald af midlertidigt tillæg)",{"$f":"SUM(C7:C14)","v":29390722.274999999},"kr."]
[]
[]
[null,"Korrektion for forventet bortfald af væsentlige omkostninger"]
[null,"Selskabets indberettede bortfald af væsentlige omkostninger inden 2015",0,"kr."]
[null,"Korrektion for forventet bortfald ",{"$f":"SUM(C19:C19)","v":0},"kr."]
[]
[]
[null,"Korrektion for prisudviklingen fra 2014-2015"]
[null,"Driftsomkostningerne i prisloftet for 2014",{"$f":"C15-C20","v":29390722.274999999},"kr."]
[null,"Prisudvikling 2014 - 2015 ",0.08,"pct."]
[null,"Korrektion for prisudvikling",{"$f":"C24*(C25/100)","v":23512.577819999999},"kr."]
[]
[]
[null,"Eventuel forhøjelse til effektivt niveau iht. benchmarkingen"]
[null,"Selskabets effektive driftsomkostninger iht. benchmarkingen",19145116,"kr."]
[null,"Selskabets pristalskorrigerede driftsomkostninger i 2015-niveau",{"$f":"C24+C26","v":29414234.852819998},"kr."]
[null,"Eventuel forhøjelse til effektivt niveau",{"$f":"IF(C31>C30,0,C30-C31)","v":0},"kr."]
[]
[]
[null,"Korrektion for generelt effektiviseringskrav"]
[null,"Driftsomkostningerne i prisloftet for 2014",{"$f":"C24","v":29390722.274999999},"kr. "]
[null,"Generelt effektiviseringskrav ",0.44,"pct."]
[null,"Endeligt generelt effektiviseringskrav",{"$f":"C36*(C37/100)","v":129319.17801},"kr. "]
[]
[]
[null,"Korrektion for individuelt effektiviseringskrav"]
[null,"Rå effektiviseringspotentiale",10551269,"kr."]
[null,"Effektiviseringspotentiale efter eventuel korrektion for særlige forhold",10245606,"kr."]
[null,"Effektiviseringspotentiale efter forsigtighedshensyn",6471837,"kr."]
[null,"Effektiviseringspotentiale efter eventuel korrektion for sammensætning af signifikante costdrivere",6471837,"kr. "]
[null,"Umiddelbart effektiviseringskrav",{"$f":"C45/4","v":1617959.25},"kr."]
[null,"Endeligt individuelt effektiviseringskrav",{"$f":"IF(C46>0.05*C24,0.05*C24,IF(C46<0.01*C24,0,C46))","v":1469536.11375},"kr. "]

{"sheet":"4. Historiske investeringer","index":3,"n_rows":9,"n_cols":4,"rows_kept":9,"cut":false,"hidden":false,"merged":[[3,1,3,2]]}
[{"$f":"'3. Driftsomkostninger'!A1","v":"Greve Spildevand A/S"}]
[]
[]
[null,"Fane 4. Historiske investeringer "]
[]
[null,"Tillæg for historiske investeringer "]
[null,"Værdi af selskabets materielle anlægsaktiver pr. 1. januar 2010",1306625365.7931614,"kr."]
[null,"Den årlige standardafskrivning på de materielle anlægsaktiver iht. POLKA",34610913.607459441,"kr."]
[null,"Tillæg i alt i 2015",{"$f":"C8","v":34610913.607459441},"kr."]

{"sheet":"5. Gennemførte investeringer","index":4,"n_rows":30,"n_cols":7,"rows_kept":30,"cut":false,"hidden":false,"merged":[[3,1,3,5],[6,5,6,6]]}
[{"$f":"'4. Historiske investeringer'!A1","v":"Greve Spildevand A/S"}]
[]
[]
[null,"Fane 5. Gennemførte investeringer i 2010 - 2013 "]
[]
[null,"Tillæg for gennemførte investeringer i 2013"]
[null," Beskrivelse af investeringen   ","Årstal ","Std. levetid (år)   "," Anskaffelses-pris (kr.)","Afskrivning "]
[null,"Ledningsnet = Ø 200 mm",2013,75,12067762,{"$f":"E8/D8","v":160903.49333333335},"kr."]
[null,"Forsinkelsesbassiner, lukkede uden automatisk rensning og SRO Miljøklasse B (mindre end 1.000 m3)",2013,50,3167309,{"$f":"E9/D9","v":63346.18},"kr."]
[null,"Indløb-/udløbsarrangement",2013,75,3204388,42725.173333333332,"kr."]
[null,"Pumpestationer m. overbygning (< 20 m2), Konstruktioner",2013,50,2076302,41526.04,"kr."]
[null,"Pumpestationer i underjordiske bygværker (",2013,20,2172858,108642.9,"kr."]
[null,"Pumpestationer i underjordiske bygværker (",2013,10,1299754,129975.4,"kr."]
[null,"Arbejdsplads",2013,5,254320,50864,"kr."]
[null,"Strømpeforing = Ø 200 mm",2013,50,2827885,56557.7,"kr."]
[null,"Strømpeforing = Ø 200 mm",2013,50,91480,1829.6,"kr."]
[null,"Pumpestationer i underjordiske bygværker (",2013,50,34707,694.14,"kr."]
[null,"Pumpestationer i underjordiske bygværker (",2013,50,233990,4679.8,"kr."]
[null,"Pumpestationer i underjordiske bygværker (",2013,50,85410,1708.2,"kr."]
[null,"Indløb-/udløbsarrangement",2013,75,72453,966.04,"kr."]
[null,"Pumpestationer i underjordiske bygværker (",2013,20,194935,9746.75,"kr."]
[null,"Pumpestationer i underjordiske bygværker (",2013,20,16168,808.4,"kr."]
[null,"Pumpestationer i underjordiske bygværker (",2013,20,163116,8155.8,"kr."]
[null,"Pumpestationer i underjordiske bygværker (",2013,10,71292,7129.2,"kr."]
[null,"Pumpestationer i underjordiske bygværker (",2013,10,95073,9507.2999999999993,"kr."]
[null,"Pumpestationer i underjordiske bygværker (",2013,10,153951,15395.1,"kr."]
[null,"Arbejdsplads",2013,5,19200,3840,"kr."]
[null,"Tillæg for 2013 ",null,null,null,{"$f":"SUM(F8:F27)","v":719001.21666666667},"kr."]
[null,"Tillæg for 2010 - 2012",null,null,null,2957700.0166666666,"kr."]
[null,"Samlet tillæg for gennemførte investeringer",null,null,null,{"$f":"F28+F29","v":3676701.2333333334},"kr."]

{"sheet":"6. Korrektion investeringer","index":5,"n_rows":10,"n_cols":4,"rows_kept":10,"cut":false,"hidden":false,"merged":[[3,1,3,3]]}
[{"$f":"'5. Gennemførte investeringer'!A1","v":"Greve Spildevand A/S"}]
[]
[]
[null,"Fane 6. Korrektion af tillæg for planlagte investeringer"]
[]
[null,"Korrektion af tillæg for planlagte investeringer vedr. 2013"]
[null,"Tillæg for planlagte investeringer i 2013 i prisloft 2013",750936,"kr."]
[null,"Tillæg for planlagte investeringer i 2013 i prisloft 2014",1026491,"kr."]
[null,"Selskabets faktiske afskrivninger på gennemførte investeringer i 2013",{"$f":"'5. Gennemførte investeringer'!F28","v":719001.21666666667},"kr."]
[null,"Korrektion af tillæg for planlagte investeringer vedr. 2013",{"$f":"C9-C7+C9-C8","v":-339424.56666666665},"kr."]

{"sheet":"7. Planlagte investeringer","index":6,"n_rows":31,"n_cols":7,"rows_kept":31,"cut":false,"hidden":false,"merged":[[6,5,6,6],[3,1,3,6]]}
[{"$f":"'6. Korrektion investeringer'!A1","v":"Greve Spildevand A/S"}]
[]
[]
[null,"Fane 7. Planlagte investeringer "]
[]
[null,"Tillæg for planlagte investeringer i 2014 og 2015"]
[null,"Beskrivelse af investeringen   ","Årstal ","Std. levetid (år)   ","Anskaffelses-pris (kr.)   ","Afskrivning"]
[null,"Ledningsnet = Ø 200 mm",2014,75,34765000,{"$f":"E8/D8","v":463533.33333333331},"kr."]
[null,"Jordbassin Klasse B",2014,50,7800000,{"$f":"E9/D9","v":156000},"kr."]
[null,"Pumpestationer i underjordiske bygværker (",2014,50,9715000,{"$f":"E10/D10","v":194300},"kr."]
[null,"Indløb-/udløbsarrangement",2014,75,950000,12666.666666666666,"kr."]
[null,"Pumpestationer i brønde (< 6,25 m2), Mek/EL",2014,20,6150000,307500,"kr."]
[null,"Pumpestationer i underjordiske bygværker (",2014,10,1050000,105000,"kr."]
[null,"Strømpeforing = Ø 200 mm",2014,50,3000000,60000,"kr."]
[null,"Strømpeforing = Ø 200 mm",2014,50,500000,10000,"kr."]
[null,"Pumpestationer i brønde (< 6,25 m2), Mek/EL",2014,20,300000,15000,"kr."]
[null,"Pumpestationer i brønde (< 6,25 m2), SRO",2014,20,200000,10000,"kr."]
[null,"Pumpestationer i brønde (< 6,25 m2), Mek/EL",2014,20,300000,15000,"kr."]
[null,"Pumpestationer i brønde (< 6,25 m2), SRO",2014,10,50000,5000,"kr."]
[null,"Ledningsnet = Ø 200 mm",2015,75,8650000,115333.33333333333,"kr."]
[null,"Jordbassin Klasse B",2015,50,3250000,65000,"kr."]
[null,"Pumpestationer m. overbygning (< 20 m2), Konstruktioner",2015,50,4400000,88000,"kr."]
[null,"Indløb-/udløbsarrangement",2015,75,550000,7333.333333333333,"kr."]
[null,"Pumpestationer i brønde (< 6,25 m2), Mek/EL",2015,20,850000,42500,"kr."]
[null,"Strømpeforing = Ø 200 mm",2015,50,3000000,60000,"kr."]
[null,"Strømpeforing = Ø 200 mm",2015,50,500000,10000,"kr."]
[null,"Pumpestationer i brønde (< 6,25 m2), Mek/EL",2015,20,300000,15000,"kr."]
[null,"Pumpestationer i brønde (< 6,25 m2), SRO",2015,10,250000,25000,"kr."]
[null,"Tillæg for 2014",null,null,null,{"$f":"SUMIF(C8:C28,\"2014\",F8:F28)","v":1354000},"kr."]
[null,"Tillæg for 2015",null,null,null,{"$f":"SUMIF(C8:C28,\"2015\",F8:F28)","v":428166.66666666663},"kr."]
[null,"Tillæg i alt",null,null,null,{"$f":"F29+F30","v":1782166.6666666665},"kr."]

{"sheet":"8. 1-1 omkostninger","index":7,"n_rows":27,"n_cols":4,"rows_kept":27,"cut":false,"hidden":false,"merged":[[3,1,3,3],[17,1,17,3],[23,1,23,3]]}
[{"$f":"'7. Planlagte investeringer'!A1","v":"Greve Spildevand A/S"}]
[]
[]
[null,"Fane 8. 1:1 omkostninger"]
[]
[null,"Tillæg for budgetterede 1:1 omkostninger i 2015"]
[null,"Betaling til Forsyningssekretariatet",33000,"kr."]
[null,"Spildevandsafgift",800000,"kr."]
[null,"Selskabskatter ",1983000,"kr. "]
[null,"Køb af varer og tjenesteydelser hos et andet prisloftreguleret vandselskab",450000,"kr."]
[null,"Tjenestemandspensioner",187296,"kr."]
[null,"Ejendomsskatter",60000,"kr."]
[null,"Tillæg i alt ",{"$f":"SUM(C7:C12)","v":3513296},"kr."]
[]
[]
[]
[]
[null,"Tillæg for budgetterede nødvendige udgifter til revisorerklæringer samt ordinært medlemskab af DANVA og FVD i 2015"]
[null,"Betaling for ordinært medlemskab af DANVA/FVD",113000,"kr."]
[null,"Betaling for revisorerklæringer",44000,"kr."]
[null,"Tillæg i alt ",{"$f":"SUM(C19:C20)","v":157000},"kr."]
[]
[]
[null,"Korrektion af tillæg for faktiske 1:1 omkostninger (inkl. revisorerklæringer og ordinært medlemskab af DANVA/FVD) i 2013"]
[null,"Selskabets faktiske 1:1 omkostninger mv. i 2013, jf. reguleringsregnskabet",1621804,"kr."]
[null,"Tillæg for budgetterede 1:1 omkostninger mv. i prisloft 2013",1595296,"kr."]
[null,"Korrektion af tillæg for budgetterede 1:1 omkostninger mv. i 2013",{"$f":"C25-C26","v":26508},"kr."]

{"sheet":"9. Miljø- og servicemål","index":8,"n_rows":15,"n_cols":4,"rows_kept":15,"cut":false,"hidden":false,"merged":[[3,1,3,3]]}
[{"$f":"'8. 1-1 omkostninger'!A1","v":"Greve Spildevand A/S"}]
[]
[]
[null,"Fane 9. Driftsomkostninger til miljø- og servicemål "]
[]
[null,"Tillæg for budgetterede driftsomkostninger til miljø- og servicemål i 2015"]
[null,"Indsats mod oversvømmelser",6000000,"kr."]
[null,"Tillæg i alt",{"$f":"SUM(C7:C7)","v":6000000},"kr."]
[]
[]
[]
[null,"Korrektion af tillæg for faktiske driftsomkostninger til miljø- og servicemål i 2013"]
[null,"Selskabets faktiske driftsomkostninger til miljø- og servicemål i 2013, jf. reguleringsregnskabet",6448207,"kr."]
[null,"Tillæg for budgetterede driftsomkostninger til miljø- og servicemål i prisloft 2013",2802896,"kr."]
[null,"Korrektion af tillæg for budgetterede driftsomkostninger til miljø- og servicemål i 2013",{"$f":"C13-C14","v":3645311},"kr."]

{"sheet":"10. Klimatilpasning","index":9,"n_rows":16,"n_cols":4,"rows_kept":16,"cut":false,"hidden":false,"merged":[[3,1,3,3],[12,1,12,3],[6,1,6,3]]}
[{"$f":"'9. Miljø- og servicemål'!A1","v":"Greve Spildevand A/S"}]
[]
[]
[null,"Fane 10. Medfinansiering af klimatilpasningsprojekter"]
[]
[]
[null,"Tillæg for budgetterede omkostninger til medfinansiering af klimatilpasningsprojekter i 2015"]
[null,null,0,"kr."]
[null,"Tillæg i alt",{"$f":" SUM(C8:C8)","v":0},"kr."]
[]
[]
[]
[null,"Korrektion af tillæg for faktiske omkostninger til medfinansiering af klimatilpasningsprojekter i 2013"]
[null,"Selskabets faktiske driftsomkostninger til klimatilpasningsprojekter i 2013, jf. reguleringsregnskabet",0,"kr."]
[null,"Tillæg for budgetterede driftsomkostninger til klimatilpasningsprojekter i prisloft 2013",0,"kr."]
[null,"Korrektion af tillæg for budgetterede omkostninger til klimatilpasningsprojekter i 2013",{"$f":"C14-C15","v":0},"kr."]

{"sheet":"11. Nettofinansielle poster","index":10,"n_rows":16,"n_cols":4,"rows_kept":16,"cut":false,"hidden":false,"merged":[[3,1,3,3]]}
[{"$f":"'10. Klimatilpasning'!A1","v":"Greve Spildevand A/S"}]
[]
[]
[null,"Fane 11. Nettofinansielle poster"]
[]
[null,"Tillæg for budgetterede nettofinansielle poster i 2015"]
[null,"Budgetterede renteudgifter og gebyrer i 2015",0,"kr."]
[null,"Budgetterede renteindtægter i 2015",170000,"kr."]
[null,"Tillæg/fradrag i alt",{"$f":"C7-C8","v":-170000},"kr."]
[]
[]
[]
[null,"Korrektion af tillæg for faktiske nettofinansielle poster i 2013"]
[null,"Selskabets faktiske nettofinansielle poster i 2013, jf. reguleringsregnskabet",274981,"kr."]
[null,"Tillæg for budgetterede nettofinansielle poster i prisloft 2013",-85000,"kr."]
[null,"Korrektion af tillæg for budgetterede nettofinansielle poster i 2013",{"$f":"C14-C15","v":359981},"kr."]

{"sheet":"12. Over- eller underdækning","index":11,"n_rows":11,"n_cols":4,"rows_kept":11,"cut":false,"hidden":true,"merged":[[3,1,3,3]]}
[{"$f":"'11. Nettofinansielle poster'!A1","v":"Greve Spildevand A/S"}]
[]
[]
[null,"Fane 12. Over- eller underdækning til og med 2010"]
[]
[null,"Tillæg/fradrag for over- eller underdækning til og med 2010"]
[null,"Opgjort over- eller underdækning per 31. december 2010",0,"kr."]
[null,"Heraf beløb indregnet i prislofterne for 2012 - 2014",0,"kr."]
[null,"Endnu ikke indregnet over- eller underdækning",{"$f":"C7-C8","v":0},"kr."]
[null,"Resterende indregningsperiode (fastsat i prisloftet for 2012)",0,"år"]
[null,"Tillæg/fradrag i alt",{"$f":"IF(C7=0,0,C9/C10)","v":0},"kr."]

{"sheet":"13. Kontrol med indtægtsrammen","index":12,"n_rows":38,"n_cols":12,"rows_kept":38,"cut":false,"hidden":false,"merged":[[3,1,3,5],[30,1,30,4],[5,1,5,5]]}
[{"$f":"'12. Over- eller underdækning'!A1","v":"Greve Spildevand A/S"}]
[]
[]
[null,"Fane 13. Korrektion for overholdelse af indtægtsrammen i prisloftet for 2013"]
[]
[null,"Samlet opgørelse vedrørende overholdelse af indtægtsrammen i prisloftet for 2013"]
[null,"Indtægtsramme i prisloftet for 2013",null,null,94218779.297595099,"kr."]
[null,"Ikke anvendt likviditet vedrørende investeringer i 2013"]
[null,"Tillæg for historiske investeringer ",35051403.953967869,"kr."]
[null,"Tillæg for gennemførte investeringer i 2011",2176491,"kr."]
[null,"Korrektion af tillæg for planlagte investeringer i 2011",915246,"kr."]
[null,"Tillæg for planlagte investeringer i 2012 og 2013",1855673,"kr."]
[null,"Indtægter fra tilslutningsbidrag",9126297,"kr."]
[null,"Indtægter fra salg af anlægsaktiver",0,"kr."]
[null,"Erstatninger vedr. anlægsaktiver mv.",0,"kr."]
[null,"Ekstraordinær effektiviseringsgevinst anvendt til investeringer",0,"kr."]
[null,"Udgifter til investeringer",-36999209,"kr."]
[null,"Ikke anvendt likviditet vedr. investeringer i alt",{"$f":"SUM(C9:C17)","v":12125901.953967869},"kr.",{"$f":"IF(C18<0,0,-C18)","v":-12125901.953967869},"kr."]
[null,"Ekstraordinære effektiviseringsgevinster anvendt til takstnedsættelse"]
[null,"Ekstraordinær effektiviseringsgevinst anvendt til takstnedsættelse",0,"kr.",{"$f":"-C20","v":0},"kr."]
[null,"Korrektion af ikke opkrævet tillæg fra 2011 i prisloft 2013"]
[null,"Korrektion af ikke opkrævet tillæg fra 2011 i prisloft 2013",0,"kr.",{"$f":"-C22","v":0},"kr."]
[null,"Indtægter fra primære aktiviteter mv."]
[null,"Indtægter fra kubikmetertakster, faste takster, særbidrag, målergebyrer samt andre takster og gebyrer",66022391,"kr."]
[null,"Andre indtægter i prisloftåret, som selskabet har opnået i forbindelse med eller som følge af selskabets primære aktiviteter",0,"kr."]
[null,"Indtægter fra primære aktiviteter mv. i alt",{"$f":"SUM(C24:C25)","v":66022391},"kr.",{"$f":"-C26","v":-66022391},"kr."]
[null,"Tillæg/fradrag i prisloftet for 2015 i alt",null,null,{"$f":"E7+E18+E20+E22+E26","v":16070486.343627229},"kr."]
[]
[]
[]
[null,"Oversigt over ekstraordinære effektiviseringsgevinster"]
[]
[null,null,2012,null,2013,null,2014,null,2015,null,2016]
[null,"Indhentet ekstraordinær effektiviseringsgevinst",0,"kr.",13655240,"kr.",null,"kr.",null,"kr.",null,"kr."]
[null,"Gevinst anvendt til investeringer",0,"kr.",0,"kr.",null,"kr.",null,"kr.",null,"kr."]
[null,"Gevinst anvendt til takstnedsættelse",0,"kr.",0,"kr.",null,"kr.",null,"kr.",null,"kr."]
[null,"Korrektion for  effektiviseringsgevinst der ikke er anvendt inden 4 år",0,"kr.",0,"kr.",null,"kr.",null,"kr.",{"$f":"IF(C38>SUM(E35:I36),C38-SUM(E35:I36),0)*-1","v":0},"kr."]
[null,"Resterende gevinst",{"$f":"C34-C35-C36","v":0},"kr.",{"$f":"C38+E34-E35-E36","v":13655240},"kr.",{"$f":"E38+G34-G35-G36","v":13655240},"kr.",{"$f":"G38+I34-I35-I36","v":13655240},"kr.",{"$f":"I38+K34-K35-K36+K37","v":13655240},"kr."]